[Event "French-ch Youth U18 2022"]
[Site "Agen"]
[Date "2022.04.18"]
[Round "2.5"]
[White "Lordier, Sophia"]
[Black "Randrianarimanana, Alicia"]
[Result "1/2-1/2"]
[ECO "D71"]
[WhiteElo "1725"]
[BlackElo "1985"]
[Annotator "TA"]
[PlyCount "119"]
[EventDate "2022.04.17"]
[EventType "swiss"]
[EventCountry "FRA"]
[SourceTitle "playchess.com"]
[Source "ChessBase"]
[SourceQuality "1"]
[TimeControl "5400+30"]

{[%evp 22,119,41,39,55,60,91,66,64,63,80,57,78,80,76,75,166,162,285,269,288,280,439,440,471,469,426,350,367,339,492,337,743,685,743,402,438,347,534,529,537,512,707,694,830,81,99,101,116,39,32,27,100,0,0,0,0,0,23,-73,0,0,0,-36,-8,-183,0,0,0,0,47,0,0,-19,836,814,12842,844,12841,279,1195,1105,1079,0,12841,12841,12845,12845,12844,0,0,0,0,0,0,0,0,0,0,0]} 1. d4 {[%emt 0:02:53]} Nf6 {[%emt 0:00:05]} 2. c4 {[%emt 0:00:11]} g6 {[%emt 0:00:03]} 3. g3 {[%emt 0:00:28]} Bg7 {[%emt 0:01:58]} 4. Bg2 {[%emt 0:01:21]} O-O {[%emt 0:00:18]} 5. Nc3 {[%emt 0:00:15]} c5 {[%emt 0:03:01]} 6. d5 {[%emt 0:03:06]} d6 {[%emt 0:00:03]} 7. Nf3 {[%emt 0:01:02][%cal Bg1f3,Bf3d2,Bd2c4][%mdl 32]} e6 {[%emt 0:05:11]} 8. O-O {[%emt 0:00:44]} exd5 {[%emt 0:00:02]} 9. cxd5 {[%emt 0:00:02]} a6 {[%emt 0:00:05]} 10. a4 {[%emt 0:00:15]} Nbd7 {[%emt 0:00:42]} 11. Nd2 {[%emt 0:04:02]} Rb8 {[%emt 0:00:54]} 12. Nc4 {[%emt 0:02:16]} Qe7 {[%emt 0:02:39] A63: Modern Benoni: Fianchetto Variation: 9...Nbd7.} 13. Bf4 {[%emt 0:01:24] [#]} Ne5 $146 {[%emt 0:07:18]} ({Predecessor:} 13... Ne8 14. a5 Ne5 15. Nxe5 Bxe5 16. Bh6 Ng7 17. Re1 b6 18. axb6 Rxb6 19. Qd2 Bd7 20. Bg5 {½-½ (29) Riazantsev,A (2708)-Kokarev,D (2639) Ekaterinburg 2013}) 14. Bxe5 {[%emt 0:06:21]} dxe5 {[%emt 0:00:04] White is slightly better.} 15. a5 {[%emt 0:06:42]} e4 {[%emt 0:05:43]} 16. Qd2 {[%emt 0:21:08]} Rd8 {[%emt 0:01:57]} 17. Qf4 {[%emt 0:05:50]} Bf5 {[%emt 0:00:37]} 18. Rfd1 {[%emt 0:01:29]} Re8 {[%emt 0:43:38]} (18... Qf8 $16 {might work better.}) 19. Nd6 $18 {[%emt 0:04:52]} Bd7 {[%emt 0:17:16]} (19... Rbd8 {was necessary.} 20. Nxf5 (20. Nxe8 Nxe8 21. Nxe4 Bxb2 $16) 20... gxf5 21. Qxf5 e3) 20. Nxe8 {[%emt 0:00:24]} Rxe8 {[%emt 0:00:04]} 21. Qc7 {[%emt 0:06:59]} e3 {[%emt 0:02:13]} (21... Qe5 $142 22. Qxc5 Bf8) 22. f4 {[%emt 0:02:18][%cal Bf2f4,Bf4f5][%mdl 32]} h5 {[%emt 0:03:54][%cal Bh7h5,Bh5h4][%mdl 32]} 23. d6 {[%emt 0:07:54]} Qe6 {[%emt 0:00:26]} 24. Qxc5 {[%emt 0:02:22]} h4 {[%emt 0:00:19]} 25. Nd5 {[%emt 0:03:34]} Nh5 {[%emt 0:01:56]} (25... Nxd5 $142 26. Qxd5 Qxd5 27. Bxd5 Bb5) 26. Ne7+ {[%emt 0:05:39]} (26. Nc7 Qg4 27. Nxe8 hxg3 28. hxg3 (28. Nxg7 gxh2+ 29. Kxh2 Nxf4 $19) 28... Qxg3 $18) 26... Kh7 $2 {[%emt 0:00:05]} (26... Kf8 27. Ra3 (27. Bxb7 hxg3 28. hxg3 Nxg3 $16) 27... hxg3 28. Rxe3 Qg4) 27. f5 {[%emt 0:00:28]} Qf6 {[%emt 0:01:08]} 28. Qxe3 {[%emt 0:04:15]} hxg3 {[%emt 0:00:11]} 29. hxg3 {[%emt 0:01:44]} gxf5 {[%emt 0:01:50]} (29... Bxf5 $142 30. Qf3 Be6 31. Qxf6 (31. Qxb7 Qg5 $18) 31... Bxf6 32. Bxb7 Bxb2 33. Bxa6 Nxg3) 30. Qf3 {[%emt 0:03:29]} Qg5 {[%emt 0:00:05]} 31. Kf2 {[%emt 0:01:55] aiming for Rh1.} Be5 {[%emt 0:00:25][%cal Rh5g3]} 32. Rh1 {[%emt 0:00:15]} Bxg3+ {[%emt 0:00:25]} 33. Kf1 $2 {[%emt 0:00:01]} (33. Kg1 $1 $18 {is the precise move to win.} Kh6 34. Rxh5+ $1 {[%mdl 512]} Qxh5 35. Qxg3) 33... Bh4 $16 {[%emt 0:00:07] [#]} 34. Rxh4 $1 {[%emt 0:01:18]} Qxh4 {[%emt 0:00:06]} 35. Nxf5 {[%emt 0:00:13] White is more active.} (35. Qxb7 Ng3+ 36. Ke1 Bb5 $17) (35. Ra3 $16) 35... Bxf5 $14 {[%emt 0:02:00]} 36. Qxf5+ {[%emt 0:00:01]} Kg8 {[%emt 0:00:01]} (36... Kg7 $1 $11 37. Ra3 Re6) 37. Kg1 {[%emt 0:01:18]} ({Better is} 37. Ra3 $16) 37... Qd4+ {[%emt 0:00:55]} (37... Nf4 $5 38. d7 Nxe2+ 39. Kf1 Ng3+ 40. Kg1 Re3 $11) 38. Qf2 {[%emt 0:00:07]} ({Reject} 38. e3 Rxe3 $1 39. Qf2 (39. Qg5+ Ng7 $17) 39... Nf4 $17) 38... Qxd6 {[%emt 0:00:06]} 39. Rf1 {[%emt 0:00:20]} ({Much weaker is} 39. Bxb7 Re6 40. Rf1 Rg6+ 41. Bg2 Nf6 $15) 39... Qg6 {[%emt 0:00:16]} 40. Kh2 {[%emt 0:01:03] [#] Against Ng3} (40. Qf5 $11 {remains equal.}) 40... Qd6+ {[%emt 0:00:28]} (40... Re5 $1 $17) 41. Kg1 $11 {[%emt 0:00:17]} Re7 {[%emt 0:00:52]} 42. Bf3 {[%emt 0:00:43]} Ng3 {[%emt 0:00:53]} 43. Qg2 {[%emt 0:00:25] [#]} (43. Rc1 $11) 43... Qg6 $2 {[%emt 0:00:41]} (43... f5 $1 $19 {...Rg7 is the strong threat.} 44. e3 Rg7) 44. Re1 {[%emt 0:00:30]} f5 {[%emt 0:00:21]} 45. Kf2 $36 {[%emt 0:00:16][%mdl 2048] White is more active.} f4 {[%emt 0:00:04]} (45... Rg7 $11 46. Bd5+ Kf8) 46. Bd5+ {[%emt 0:00:04]} (46. Qh3 $1 $14 {feels stronger.}) 46... Kg7 {[%emt 0:00:30] White must now prevent ...Qg5.} 47. Qf3 {[%emt 0:00:46]} Re3 $2 {[%emt 0:00:10][%mdl 8192]} (47... Qh6 $11 48. Qg4+ Kf6) 48. Qxf4 $18 {[%emt 0:00:20]} Nf5 {[%emt 0:01:27]} 49. Qc7+ {[%emt 0:01:09]} (49. Rg1 $142 Rxe2+ 50. Kxe2 Qxg1 51. Qe5+ Kh6 52. Qxf5 Qh2+ 53. Qf2 Qh5+ 54. Qf3 Qh2+ 55. Qg2) 49... Kf8 {[%emt 0:00:22]} 50. Qc5+ $2 {[%emt 0:00:31]} (50. Rg1 Re7 51. Qc8+ Re8 52. Rxg6 Rxc8 53. Rg8+ Ke7 54. Rxc8) 50... Ke8 $2 {[%emt 0:00:38]} (50... Kg7 51. Rg1 Rg3 52. Qc7+ Kf8 53. Rxg3 Nxg3 54. Qd8+ Kg7 55. Qg8+ Kh6 56. Qxg6+ Kxg6 57. Kxg3 Kg7 58. Bxb7 Kf7 59. Bxa6 Ke8) 51. Qc8+ {[%emt 0:00:28]} Ke7 {[%emt 0:00:16]} 52. Qc7+ {[%emt 0:00:02]} (52. Qxb7+ $142 Kd8 53. Qb8+ Kd7 54. Qa7+ Kd8 55. Rg1) 52... Kf8 {[%emt 0:00:17]} 53. Rg1 {[%emt 0:00:41]} Rxe2+ {[%emt 0:01:24]} 54. Kxe2 {[%emt 0:00:06]} Nd4+ {[%emt 0:00:16]} 55. Ke3 $2 {[%emt 0:01:00]} ({Only move:} 55. Kd2 $18 Nf3+ 56. Bxf3 Qxg1 57. Qd8+ Kg7 58. Qe7+ Kh8 59. Qf6+ Qg7 60. Qxg7+ Kxg7 61. Bxb7) 55... Qxg1+ $11 {[%emt 0:00:04] The position is equal.} 56. Kd3 {[%emt 0:00:04][%csl Gd5][%cal Rc7f7] The board is on fire.} Qd1+ {[%emt 0:00:11]} 57. Ke4 {[%emt 0:00:06][%csl Gd5][%cal Rc7f7]} Qg4+ {[%emt 0:00:37]} 58. Kd3 {[%emt 0:00:46][%csl Gd5][%cal Rc7f7]} Qd1+ $1 {[%emt 0:00:09]} 59. Ke4 {[%emt 0:00:20][%csl Gd5][%cal Rc7f7]} Qg4+ {[%emt 0:00:06]} 60. Qf4+ {Weighted Error Value: White=0.76/Black=0.50} 1/2-1/2

[Event "French-ch Youth U18 2022"]
[Site "Agen"]
[Date "2022.04.18"]
[Round "2.6"]
[White "Tomasi, Elise"]
[Black "Bellahcene, Sofia"]
[Result "1/2-1/2"]
[ECO "A46"]
[WhiteElo "1988"]
[BlackElo "1813"]
[Annotator "TA"]
[PlyCount "50"]
[EventDate "2022.04.17"]
[EventType "swiss"]
[EventCountry "FRA"]
[SourceTitle "playchess.com"]
[Source "ChessBase"]
[SourceQuality "1"]
[TimeControl "5400+30"]

{[%evp 16,50,4,2,3,-34,-10,-26,80,83,104,114,149,157,156,81,83,57,46,55,43,57,49,52,52,45,48,47,58,13,15,14,15,11,4,0,0]} 1. d4 {[%emt 0:00:05]} Nf6 {[%emt 0:01:28]} 2. Nf3 {[%emt 0:00:30]} d5 {[%emt 0:00:27]} 3. g3 {[%emt 0:00:47]} Bf5 {[%emt 0:00:37]} 4. Bg2 {[%emt 0:01:04]} e6 {[%emt 0:00:28]} 5. O-O {[%emt 0:01:09]} h6 {[%emt 0:00:32]} 6. c4 {[%emt 0:01:38]} c6 {[%emt 0:00:58]} 7. Nc3 {[%emt 0:02:22]} Nbd7 {[%emt 0:01:00]} 8. Qb3 {[%emt 0:01:08] is the new trend.} Qb6 {[%emt 0:01:19]} 9. c5 {[%emt 0:00:33]} Qa6 {[%emt 0:01:00] D11: Slav Defence: 3 Nf3 sidelines and 3...Nf6 4 e3 Bg4.} 10. Qd1 {[%emt 0:16:03]} (10. Nd2 $5 {[%cal Re2e4]}) 10... b6 {[%emt 0:07:22]} 11. b4 {[%emt 0:03:11][%cal Bb2b4,Bb4b5][%mdl 32] [#]} Qc4 $146 {[%emt 0:05:55] [#]} (11... Be7 $11 {keeps the balance.}) ({Predecessor:} 11... bxc5 12. bxc5 Be7 13. Re1 O-O 14. h3 Ne4 15. Bd2 Rab8 16. Qc1 Bf6 17. g4 Bh7 {0-1 (58) Almanza,R (2174)-Ruiz Sanchez,O (2420) Bogota 2013}) 12. Qb3 $1 $16 {[%emt 0:03:42]} Qxb3 {[%emt 0:09:29]} 13. axb3 {[%emt 0:00:25]} a5 {[%emt 0:00:50]} 14. b5 {[%emt 0:29:28]} Rc8 {[%emt 0:08:15] [#]} 15. cxb6 {[%emt 0:07:18]} (15. bxc6 $142 $1 Rxc6 16. Nb5) 15... Nxb6 {[%emt 0:04:10]} 16. Rxa5 {[%emt 0:02:37]} Bb4 {[%emt 0:00:14][%csl LRa5,LRc3]} 17. Ra6 {[%emt 0:00:11] Threatens to win with Na2.} Bxc3 {[%emt 0:02:25]} 18. Rxb6 {[%emt 0:00:29]} cxb5 {[%emt 0:00:22]} 19. Ba3 $1 {[%emt 0:03:17] Black must now prevent Rc1.} b4 $1 {[%emt 0:00:05]} 20. Bxb4 {[%emt 0:00:06]} Bxb4 {[%emt 0:00:04]} 21. Rxb4 O-O {[%emt 0:00:15][%cal Bh8f8,Bf8b8,Bb8b3][%mdl 32]} 22. Ne5 {[%emt 0:06:14]} Rb8 $1 {[%emt 0:03:43] The position is equal.} 23. Rxb8 {[%emt 0:01:28]} Rxb8 {[%emt 0:00:06]} 24. Rc1 {[%emt 0:00:56]} Rxb3 {[%emt 0:01:13]} 25. f3 {[%emt 0:00:19] Rc8+ is the strong threat.} Rb1 {[%emt 0:00:17] Weighted Error Value: White=0.13 (very precise) /Black=0.19 (very precise)} 1/2-1/2

[Event "French-ch Youth U18 2022"]
[Site "Agen"]
[Date "2022.04.18"]
[Round "2.7"]
[White "Estin-Charbonnel, Lucie"]
[Black "Moracchini, Margaux"]
[Result "0-1"]
[ECO "B23"]
[WhiteElo "1537"]
[BlackElo "1994"]
[Annotator "TA"]
[PlyCount "120"]
[EventDate "2022.04.17"]
[EventType "swiss"]
[EventCountry "FRA"]
[SourceTitle "playchess.com"]
[Source "ChessBase"]
[SourceQuality "1"]
[TimeControl "5400+30"]

{[%evp 9,120,0,5,0,0,-9,1,-27,-28,-42,-6,-23,-12,-20,-23,-30,-16,-35,-10,-45,-43,-49,-50,-56,-14,-32,-18,-39,-6,-15,-8,-8,-10,-27,-30,-205,-154,-155,-110,-159,-163,-223,-190,-381,-324,-359,-289,-302,-256,-273,-250,-266,-254,-249,-237,-266,-189,-227,-186,-184,-149,-135,-147,-214,-149,-201,-204,-271,-183,-171,-102,-102,0,-262,-267,-268,-262,-235,-102,-102,-102,-108,-83,-83,-83,-83,-62,-102,-67,-90,-80,-114,-114,-700,-668,-610,-406,-12842,-12843,-12843,-12843,-12844,-12844,-12845,-12845,-12845,-12846,-12846,-12847,-12847,-12847,-12848,-12848]} 1. e4 {[%emt 0:00:01]} c5 {[%emt 0:00:06]} 2. Nc3 {[%emt 0:00:05]} d6 {[%emt 0:00:14]} 3. Bb5+ {[%emt 0:00:07]} Bd7 {[%emt 0:01:05]} 4. Bc4 {[%emt 0:00:07]} g6 {[%emt 0:04:02]} 5. d3 {[%emt 0:00:09]} Bg7 {[%emt 0:00:49]} 6. f4 {[%emt 0:00:20] B23: Closed Sicilian: Lines without g3.} e6 {[%emt 0:03:20]} 7. Nf3 {[%emt 0:00:18]} Nc6 {[%emt 0:06:04]} 8. O-O {[%emt 0:05:12][%cal Of4f5] The position is equal.} Nge7 {[%emt 0:06:40] Prevents f5.} 9. a3 {[%emt 0:01:56]} a6 {[%emt 0:02:15]} 10. Bd2 {[%emt 0:08:47]} b5 {[%emt 0:03:07]} 11. Ba2 {[%emt 0:00:07]} O-O {[%emt 0:03:29] [#]} 12. Rb1 $146 {[%emt 0:12:30]} ({Predecessor:} 12. h4 Nd4 13. Kf2 Rc8 14. Rh1 b4 15. axb4 cxb4 16. Ne2 Nxc2 17. Rc1 Qb6+ 18. Kg3 b3 19. Bb1 Bxb2 20. Bxc2 Bxc1 {0-1 (20) Gonzalez Cascante,R (1237)-Vivas Zamora,F (2128) San Jose 2017}) 12... Nd4 {[%emt 0:06:00]} 13. Kh1 {[%emt 0:07:31]} Rc8 {[%emt 0:10:43]} 14. Ne2 {[%emt 0:05:40]} Nxf3 {[%emt 0:02:28]} 15. Rxf3 {[%emt 0:00:11]} d5 {[%emt 0:05:44]} 16. Ng3 {[%emt 0:17:21]} Nc6 {[%emt 0:09:28]} 17. c3 {[%emt 0:08:09]} ({Don't play} 17. exd5 exd5 18. Rf1 (18. Bxd5 Bg4 $17) 18... c4 $17) 17... c4 {[%emt 0:08:50]} 18. Qe1 Re8 {[%emt 0:04:27]} 19. Qf2 {[%emt 0:21:24]} Ne7 {[%emt 0:05:46]} 20. Be3 {[%emt 0:04:33]} Bc6 {[%emt 0:01:36][%cal Bd7c6,Bc6d5,Bd5c4,Bc4b3][%mdl 32]} (20... cxd3 $2 21. Bb6 Rc7 22. Rxd3 $18 (22. Bxc7 Qxc7 23. exd5 Nxd5 $16)) 21. Bb6 {[%emt 0:05:10]} Qd7 {[%emt 0:00:16]} 22. Qf1 $2 (22. Re1 $11 {and White is okay.}) 22... Qb7 {[%emt 0:02:33]} 23. Bg1 {[%emt 0:01:34]} cxd3 {[%emt 0:00:45]} 24. exd5 {[%emt 0:00:35]} ({White should try} 24. e5) 24... Nxd5 $17 {[%emt 0:00:51] Threatens to win with ...Red8.} 25. Bxd5 {[%emt 0:00:40]} (25. Rd1 $142) 25... Bxd5 $19 {[%emt 0:00:11]} ({Worse is} 25... exd5 26. Bd4 $17) 26. Rf2 {[%emt 0:00:17]} (26. Rxd3 h5 27. Re1) 26... Red8 {[%emt 0:01:21] aiming for ...h5.} 27. Rd1 {[%emt 0:00:27]} Bc4 {[%emt 0:01:14][%cal Od3d2]} 28. Rfd2 {[%emt 0:00:16]} Rd7 {[%emt 0:03:26]} 29. Qe1 {[%emt 0:00:41]} Bb3 {[%emt 0:00:45]} 30. Rc1 {[%emt 0:00:42]} Rc4 {[%emt 0:00:26]} 31. Be3 {[%emt 0:00:32]} h5 {[%emt 0:02:18]} 32. h3 {[%emt 0:00:30]} Qc6 {[%emt 0:01:14]} 33. Nf1 {[%emt 0:00:33]} a5 {[%emt 0:00:58] And now ...b4 would win.} 34. Rf2 {[%emt 0:00:30]} Qd5 {[%emt 0:02:07]} 35. Nd2 {[%emt 0:00:27]} Rc8 {[%emt 0:00:23] &Nero is much more active.} 36. Kg1 {[%emt 0:00:27]} (36. Nf3 $17) 36... Kh7 {[%emt 0:00:30]} 37. Nxb3 {[%emt 0:00:30]} (37. Nf3 $17) 37... Qxb3 {[%emt 0:00:07]} 38. Rd1 {[%emt 0:00:08]} Bf6 {[%emt 0:00:54] Strongly threatening ...Bh4.} 39. Rfd2 {[%emt 0:00:23]} Qc4 {[%emt 0:01:04]} ({Better is} 39... Rc6 $19 40. g4 Rd5) 40. Qf1 $17 {[%emt 0:00:53][%cal Rd2d3]} Qb3 {[%emt 0:00:31]} (40... Qa2 $17 41. Bb6 b4 42. cxb4 axb4 43. axb4 Rc4) 41. Qf2 $2 {[%emt 0:00:30][%mdl 8192] [#]} (41. Qe1 $1 $11 {and White has nothing to worry.}) 41... b4 $1 $19 {[%emt 0:00:45]} 42. axb4 {[%emt 0:00:40]} axb4 {[%emt 0:00:07]} 43. cxb4 {[%emt 0:00:35] [#]} Qxb4 {[%emt 0:01:24]} (43... Bxb2 $1 $19 {[%mdl 512] ...Bc1 is the strong threat.} 44. Qf1 Rc3) 44. Rxd3 $17 {[%emt 0:00:13]} Rxd3 {[%emt 0:00:09]} 45. Rxd3 {[%emt 0:00:08]} Qxb2 {[%emt 0:00:16]} (45... Bxb2 {seems wilder.} 46. Rd7 Kg8 47. Qd2 Qb8) 46. Qxb2 {[%emt 0:00:45]} Bxb2 $19 {[%emt 0:00:05][%mdl 4096] Endgame KRB-KRB} 47. Kf2 {[%emt 0:00:24]} Kg7 {[%emt 0:00:13]} 48. Rd2 {[%emt 0:00:49]} Bf6 {[%emt 0:00:36]} 49. Kf3 {[%emt 0:00:18]} Rc3 {[%emt 0:00:24]} 50. Ke4 {[%emt 0:00:30]} g5 {[%emt 0:01:34]} 51. fxg5 $2 {[%emt 0:00:32][%mdl 8192] [#]} (51. Ra2 $17) 51... Rxe3+ $1 $17 {[%emt 0:00:26][%mdl 512] KRB-KR} 52. Kf4 {[%emt 0:00:49]} e5+ {[%emt 0:00:24]} 53. Kxe3 {[%emt 0:00:19]} (53. Kf5 $142 Be7 54. Rd7) 53... Bxg5+ $19 {Black is clearly winning.} 54. Kd3 {[%emt 0:00:09]} Bxd2 {[%emt 0:00:11]} 55. Kxd2 {[%emt 0:00:03] K3P-KPP} Kf6 {[%emt 0:00:46]} 56. Ke3 {[%emt 0:00:06]} Kf5 {[%emt 0:00:10]} 57. Kf3 {[%emt 0:01:25]} h4 {[%emt 0:00:24]} 58. Ke3 {[%emt 0:00:08]} e4 {[%emt 0:00:20]} 59. Kf2 {[%emt 0:00:10]} Kf4 {[%emt 0:00:04]} 60. Kf1 {[%emt 0:00:04]} Kg3 {[%emt 0:00:11] Weighted Error Value: White=0.55/Black=0.27 (precise)} 0-1

[Event "French-ch Youth U18 2022"]
[Site "Agen"]
[Date "2022.04.18"]
[Round "2.8"]
[White "Courjal, Pauline"]
[Black "Renaudin, Axelle"]
[Result "0-1"]
[ECO "B11"]
[WhiteElo "1976"]
[BlackElo "1591"]
[Annotator "TA"]
[PlyCount "101"]
[EventDate "2022.04.17"]
[EventType "swiss"]
[EventCountry "FRA"]
[SourceTitle "playchess.com"]
[Source "ChessBase"]
[SourceQuality "1"]
[TimeControl "5400+30"]

{[%evp 10,101,26,5,33,24,39,35,42,22,22,29,29,27,30,8,17,3,9,6,13,8,6,4,19,12,39,35,27,6,29,13,13,12,18,15,14,0,0,0,7,-2,18,3,30,23,23,29,29,34,98,101,119,74,76,0,0,0,10,19,6,0,0,0,0,0,0,0,6,6,9,0,0,0,0,0,0,0,0,0,50,45,181,167,202,200,185,0,0,-9,-10,-10,-10,-10]} 1. e4 {[%emt 0:00:06]} c6 {[%emt 0:00:07]} 2. Nc3 {[%emt 0:00:04]} d5 {[%emt 0:00:06]} 3. Nf3 {[%emt 0:00:04]} Bg4 {[%emt 0:00:41]} 4. h3 {[%emt 0:00:09]} Bxf3 {[%emt 0:01:34]} 5. Qxf3 {[%emt 0:00:06]} e6 {[%emt 0:00:38]} 6. Be2 {[%emt 0:00:08]} Nd7 {[%emt 0:03:44] B11: Caro-Kann: Two Knights Variation.} 7. d4 {[%emt 0:01:22]} dxe4 {[%emt 0:01:20]} 8. Nxe4 {[%emt 0:00:10]} Ngf6 {[%emt 0:00:10] White is slightly better.} 9. O-O {[%emt 0:00:18]} Nxe4 {[%emt 0:03:24]} 10. Qxe4 {[%emt 0:00:06]} Nf6 {[%emt 0:00:04]} 11. Qd3 {[%emt 0:00:05]} Bd6 {[%emt 0:04:38]} 12. c4 {[%emt 0:00:21]} O-O {[%emt 0:01:51]} 13. Be3 {[%emt 0:00:06]} Qc7 {[%emt 0:01:33]} 14. Bf3 {[%emt 0:01:01]} Rad8 {[%emt 0:01:46]} 15. Qb3 {[%emt 0:01:57]} Rd7 {[%emt 0:21:03]} 16. g3 {[%emt 0:03:00] [#]} Rfd8 $146 {[%emt 0:01:21]} ({Predecessor:} 16... c5 17. Rad1 b6 18. Kg2 Rc8 19. d5 exd5 20. Bxd5 Nxd5 21. Rxd5 Rcd8 22. Rfd1 Be5 {½-½ (35) Medvegy,N (2343)-Van den Bersselaar,J (2197) Tromsoe 2010}) 17. Rfd1 {[%emt 0:02:03]} Be7 {[%emt 0:05:22]} 18. Rac1 {[%emt 0:01:25]} Qa5 {[%emt 0:06:05]} 19. Bg2 {[%emt 0:04:13]} (19. a3 {looks sharper.} Qf5 20. Kg2 h6 21. Re1) 19... Qb4 {[%emt 0:10:46]} 20. Qc3 {[%emt 0:11:00]} Qxc3 {[%emt 0:03:36]} 21. bxc3 {[%emt 0:00:10]} Ne8 {[%emt 0:02:48][%cal Bf6e8,Be8d6,Bd6f5][%mdl 32]} 22. Bf3 {[%emt 0:02:23]} Nd6 {[%emt 0:03:51]} 23. Be2 {[%emt 0:19:54]} Nf5 {[%emt 0:01:36][%cal Oc6c5]} 24. Bf4 {[%emt 0:00:08]} Bd6 {[%emt 0:00:24]} 25. Bd2 {[%emt 0:00:16]} Be7 {[%emt 0:06:22]} 26. a4 {[%emt 0:11:17]} h6 {[%emt 0:08:40]} (26... e5 $5) 27. a5 {[%emt 0:07:29]} c5 {[%emt 0:01:21]} 28. g4 {[%emt 0:01:00]} Nd6 {[%emt 0:00:05]} 29. Be3 {[%emt 0:01:19]} cxd4 {[%emt 0:02:21]} ({Black should try} 29... Ne4 $14) 30. cxd4 $16 {[%emt 0:00:18]} Ne8 {[%emt 0:00:37]} 31. Bf3 {[%emt 0:01:43]} Bb4 {[%emt 0:01:26]} 32. Bd2 {[%emt 0:09:54]} ({White should play} 32. Rb1 $16 Bxa5 33. Bxb7 (33. Rxb7 Rxb7 34. Bxb7 Bb4 $16)) 32... Bxd2 $11 {[%emt 0:05:22]} 33. Rxd2 {[%emt 0:00:05]} b6 {[%emt 0:00:59]} 34. axb6 {[%emt 0:06:09]} axb6 {[%emt 0:00:03]} 35. d5 {[%emt 0:00:37]} Nf6 {[%emt 0:01:06]} 36. Rcd1 {[%emt 0:03:04]} exd5 {[%emt 0:00:09]} 37. cxd5 {[%emt 0:00:06][%cal Bc4d5,Bd5d6][%mdl 32]} b5 {[%emt 0:00:28]} 38. h4 {[%emt 0:03:42]} g5 {[%emt 0:00:07]} 39. hxg5 {[%emt 0:03:46]} hxg5 {[%emt 0:00:04]} 40. d6 {[%emt 0:00:20]} b4 {[%emt 0:01:38]} 41. Bc6 {[%emt 0:04:10]} Ra7 {[%emt 0:00:07]} 42. d7 {[%emt 0:03:03]} Kf8 {[%emt 0:00:46]} 43. Rd6 {[%emt 0:01:34]} Ke7 {[%emt 0:00:20] [#] aiming for ...Ra6.} 44. R6d4 {[%emt 0:00:08]} Nxd7 {[%emt 0:00:54]} (44... b3 $11) 45. Re4+ $14 {[%emt 0:00:06]} ({Reject} 45. Rxb4 Ne5 46. Rxd8 Nxc6 $11) 45... Kf8 {[%emt 0:00:14]} (45... Kf6 $14) 46. Rxb4 $18 {[%emt 0:00:07]} Ke7 {[%emt 0:00:33] [#]} 47. Re4+ {[%emt 0:00:24]} Kf8 {[%emt 0:00:13]} 48. Rd6 $2 {[%emt 0:00:52]} (48. f3 $18) 48... Re8 $11 {[%emt 0:01:09] The position is equal.} 49. Red4 {[%emt 0:02:16]} Re1+ {[%emt 0:00:47]} 50. Kg2 {[%emt 0:00:02]} Ne5 {[%emt 0:00:26]} 51. Rd8+ {[%mdl 32768] Weighted Error Value: White=0.12 (very precise) /Black=0.14 (very precise) . Loss on time!?} 0-1

[Event "French-ch Youth U18 2022"]
[Site "Agen"]
[Date "2022.04.18"]
[Round "3.1"]
[White "Girel, Joseph"]
[Black "Lafourcade, Victor"]
[Result "1-0"]
[ECO "D37"]
[WhiteElo "2394"]
[BlackElo "2055"]
[Annotator "TA"]
[PlyCount "50"]
[EventDate "2022.04.17"]
[EventType "swiss"]
[EventCountry "FRA"]
[SourceTitle "playchess.com"]
[Source "ChessBase"]
[SourceQuality "1"]
[TimeControl "5400+30"]

{[%evp 9,50,25,43,34,45,47,42,35,54,39,49,35,43,39,39,36,42,0,48,44,52,25,48,62,110,-30,69,70,72,72,112,47,93,35,32,-20,69,70,82,84,131,90,127]} 1. d4 {[%emt 0:06:20]} Nf6 {[%emt 0:00:06]} 2. c4 {[%emt 0:00:19]} e6 {[%emt 0:00:05]} 3. Nf3 {[%emt 0:00:19]} d5 {[%emt 0:00:10]} 4. Nc3 {[%emt 0:00:10]} dxc4 {[%emt 0:00:09]} 5. e4 {[%emt 0:00:15][%cal Be2e4,Be4e5][%mdl 32]} b5 {[%emt 0:00:10]} 6. e5 {[%emt 0:00:18] D24: Queen's Gambit Accepted: 3 Nf3 Nf6 4 Nc3.} Nd5 {[%emt 0:00:06]} 7. Nxb5 {[%emt 0:00:17]} Nb6 {[%emt 0:00:05]} 8. Be2 {[%emt 0:00:49] White is slightly better.} Nc6 {[%emt 0:01:48] 8...Nc6 is better than 8...Be7.} 9. O-O {[%emt 0:01:13]} Be7 {[%emt 0:00:20]} 10. Qd2 {[%emt 0:00:35]} O-O {[%emt 0:00:14]} 11. Rd1 {[%emt 0:00:25]} Rb8 {[%emt 0:19:48]} 12. Nc3 {[%emt 0:06:57]} Nb4 {[%emt 0:02:30]} 13. Qf4 {[%emt 0:01:43]} Bb7 {[%emt 0:00:38]} (13... Nc2 $11 14. Rb1 Nd5 15. Nxd5 exd5) 14. Qg4 $14 {[%emt 0:03:24] Hoping for Bh6.} Kh8 {[%emt 0:09:09] [#]} 15. b3 $146 {[%emt 0:03:09]} ({Predecessor:} 15. Bg5 f6 16. exf6 Bxf6 17. Be3 Nc2 18. Rac1 Nxe3 19. fxe3 Nd5 20. Kf2 Bg5 21. Nxd5 exd5 22. Rc3 Bc8 23. Qh5 g6 {0-1 (23) Livaic,L (2507)-Maghsoodloo,P (2674) Chess.com INT 2020}) 15... N4d5 {[%emt 0:02:52]} 16. Ne4 {[%emt 0:08:58]} c3 (16... cxb3 $14 17. axb3 a6) 17. Bg5 {[%emt 0:00:31]} (17. Bd3 $16) 17... h6 {[%emt 0:12:36]} (17... f6 $11 18. exf6 gxf6) 18. Bxe7 {[%emt 0:08:50]} Qxe7 19. Rdc1 {[%emt 0:01:45]} Qa3 {[%emt 0:09:08]} 20. Bd1 {[%emt 0:09:02]} ({But not} 20. Nxc3 $2 Nxc3 21. Rxc3 Qb2 $19) (20. Ne1 $16) 20... Qb2 (20... Rfd8 $14) 21. Rcb1 {[%emt 0:00:42]} (21. Ne1 $16) 21... Qa3 {[%emt 0:12:56]} 22. Nh4 {[%emt 0:01:50]} (22. Nc5 $14) 22... Qb4 {[%emt 0:10:46]} ({Black should play} 22... Nd7 $11) 23. Nc5 {[%emt 0:02:45] [#] Strongly threatening Bc2.} Ne7 {[%emt 0:02:32]} 24. Bc2 {[%emt 0:02:54]} Nbd5 {[%emt 0:00:01]} (24... Rbd8 $142 25. Rd1 (25. Nxb7 Rxd4 26. Qe2 Rxh4 $11) 25... Nd7) 25. Nd7 {[%emt 0:00:14][%csl LRb8,LRf8] &Bianco is more active.} ({Resist} 25. Qe4 $6 g6 $11) 25... Rbd8 {[%emt 0:00:01] Weighted Error Value: White=0.26 (precise) /Black=0.31} 1-0